bitfinex/quotes_BTCUSD_20250508
["timestamp","ask_amount","ask_price","bid_price","bid_amount"]
[1746719616165,0.01981335,100940.0,100930.0,0.59815713]
[1746719616166,0.37571227,100940.0,100930.0,0.59815713]
[1746719616373,0.36580599,100940.0,100930.0,0.59815713]
[1746719616581,0.58982897,100950.0,100940.0,0.19615352]
[1746719616782,0.47256692,100950.0,100940.0,0.1981375]
[1746719616986,0.3759107,100950.0,100940.0,0.21795114]
[1746719617179,0.3759107,100950.0,100940.0,0.20804437]
[1746719617377,0.58393437,100950.0,100940.0,0.1981375]
[1746719617556,0.3660052,100950.0,100940.0,0.1981375]
[1746719618130,0.58393446,100950.0,100940.0,0.1981375]
[1746719618251,0.37591031,100950.0,100940.0,0.1981375]
[1746719618460,0.38635487,100960.0,100950.0,0.19811788]
[1746719618670,0.45730854,100960.0,100950.0,0.19811788]
[1746719618881,0.03645016,100960.0,100950.0,0.19811788]
[1746719619075,0.25435803,100960.0,100950.0,0.19811788]
[1746719619354,0.59435803,100960.0,100950.0,0.19811788]
[1746719619544,0.02971639,100950.0,100940.0,0.1981375]
[1746719619769,0.01664162,100960.0,100950.0,0.19811788]
[1746719619988,0.03644996,100960.0,100950.0,0.19811788]
[1746719620169,0.04635448,100960.0,100950.0,0.19811788]
[1746719620401,0.00014162,100960.0,100950.0,0.21792936]
[1746719620605,0.00014162,100960.0,100950.0,0.22783486]
[1746719620824,0.00014162,100960.0,100950.0,0.23774006]
[1746719621029,0.01004574,100960.0,100950.0,0.21792936]
[1746719621456,0.00014162,100960.0,100950.0,0.2139377]
[1746719621624,0.01004584,100960.0,100950.0,0.2139377]
[1746719621846,0.21804821,100960.0,100950.0,0.19412622]
[1746719621985,0.03595095,100960.0,100950.0,0.19811788]
[1746719622225,0.01614162,100960.0,100950.0,0.21792907]
[1746719622431,0.00014162,100960.0,100950.0,0.22783427]
[1746719623842,0.00014162,100960.0,100950.0,0.19684724]
[1746719624250,0.00014162,100960.0,100950.0,0.18694194]
[1746719624466,0.00014162,100960.0,100950.0,0.19684724]
[1746719625749,0.00014162,100960.0,100950.0,0.19882822]
[1746719625952,0.00014162,100960.0,100950.0,0.19684763]
[1746719626181,0.00014162,100960.0,100950.0,0.20675303]
[1746719626807,0.02985517,100960.0,100950.0,0.16713085]
[1746719627003,0.00014162,100960.0,100950.0,0.17703674]
[1746719627247,0.00014162,100960.0,100950.0,0.20675323]
[1746719628318,0.10080854,100960.0,100950.0,0.00990589]
[1746719628531,0.00014162,100960.0,100950.0,0.22783506]
[1746719628764,0.00014162,100960.0,100950.0,0.08147834]
[1746719628976,0.01004584,100960.0,100950.0,0.09138423]
[1746719629510,0.00014162,100960.0,100950.0,0.09138423]
[1746719629782,0.00014162,100960.0,100950.0,0.08518888]
[1746719630897,0.00014162,100960.0,100950.0,0.09138423]
[1746719631119,0.00014162,100960.0,100950.0,0.19205115]
[1746719631357,0.00014162,100960.0,100950.0,0.20903198]
[1746719631594,0.00014162,100960.0,100950.0,0.237892]
[1746719631818,0.00014162,100960.0,100950.0,0.19205115]
[1746719632052,0.00014162,100960.0,100950.0,0.19403165]
[1746719632960,0.00014162,100960.0,100950.0,0.39403165]
[1746719633154,0.00014162,100960.0,100950.0,0.40725115]
[1746719633394,0.00014162,100960.0,100950.0,0.437592]
[1746719634432,0.00014162,100960.0,100950.0,0.777592]
[1746719634561,0.00014162,100960.0,100950.0,0.787592]
[1746719635199,0.05,101000.0,100990.0,0.22774412]
[1746719635399,0.05014157,101000.0,100990.0,0.32841104]
[1746719635607,0.05014157,101000.0,100990.0,0.33460639]
[1746719636005,0.05014157,101000.0,100990.0,0.73460639]
[1746719638602,0.05014157,101000.0,100990.0,0.75100639]
[1746719639283,0.05014157,101000.0,100990.0,0.73460639]
[1746719640213,0.06994285,101000.0,100990.0,0.20423475]
[1746719640435,0.06004177,101000.0,100990.0,0.23393937]
[1746719640664,0.6104381,101000.0,100990.0,0.00619535]
[1746719640900,0.62296275,101000.0,100990.0,0.20423475]
[1746719641116,0.62296275,101000.0,100990.0,0.21413672]
[1746719641304,0.42494295,101000.0,100990.0,0.22403859]
[1746719641540,0.42494295,101000.0,100990.0,0.23394036]
[1746719641669,0.63286364,101000.0,100990.0,0.00619535]
[1746719641906,0.63866305,101000.0,100990.0,0.00619535]
[1746719642123,0.63866305,101000.0,100990.0,0.20423475]
[1746719642599,0.82299642,101000.0,100990.0,0.00619535]
[1746719642847,1.16075992,101000.0,100990.0,0.00619535]
[1746719643074,0.5578858,100970.0,100960.0,0.00619535]
[1746719643295,0.60442665,100970.0,100960.0,0.00619535]
[1746719643541,0.70509357,100970.0,100960.0,0.00619535]
[1746719643757,0.70509357,100970.0,100960.0,0.2042936]
[1746719643995,0.69055272,100970.0,100960.0,0.19809825]
[1746719644227,0.4924735,100970.0,100960.0,0.19809825]
[1746719644476,0.34,100970.0,100960.0,0.30703933]
[1746719644703,0.34,100970.0,100960.0,0.29713511]
[1746719644925,0.56778953,100970.0,100960.0,0.2042936]
[1746719645182,0.69035311,100970.0,100960.0,0.00619535]
[1746719645411,1.11178306,100970.0,100960.0,0.00619535]
[1746719645635,0.23350708,100960.0,100950.0,0.39811166]
[1746719645843,0.23350708,100960.0,100950.0,0.39811788]
[1746719645844,0.32426998,100960.0,100950.0,0.39811788]
[1746719646050,0.14137114,100960.0,100950.0,0.39811788]
[1746719646307,0.75874033,100960.0,100950.0,0.2]
[1746719646543,0.75874033,100960.0,100950.0,0.39811788]
[1746719646544,0.34937449,100960.0,100950.0,0.39811788]
[1746719646746,0.15588537,100960.0,100950.0,0.40431323]
[1746719646947,0.3440793,100960.0,100950.0,0.40431323]
[1746719647150,0.00990412,100960.0,100950.0,0.40431323]
[1746719647357,0.35355073,100960.0,100950.0,0.20619535]
[1746719647660,0.3510743,100960.0,100950.0,0.40431323]
[1746719647863,0.11686692,100960.0,100950.0,0.40431323]
[1746719648055,0.12047526,100960.0,100950.0,0.40431323]
[1746719648200,0.33838373,100960.0,100950.0,0.40431323]
[1746719648399,0.3505745,100960.0,100950.0,0.20619535]
[1746719648600,1.19813052,100960.0,100950.0,0.20619535]
[1746719648816,1.16200445,100960.0,100950.0,0.20619535]
[1746719649012,1.14550445,100960.0,100950.0,0.14179535]
[1746719649220,0.55797826,100930.0,100920.0,0.19816516]
[1746719649401,0.66855293,100930.0,100920.0,0.19864588]
[1746719649605,0.65864577,100930.0,100920.0,0.00046911]
[1746719649984,0.65864577,100930.0,100920.0,0.34155712]
[1746719649985,0.34,100930.0,100920.0,0.34155712]
[1746719650343,0.36080962,100960.0,100950.0,0.19811788]
[1746719650544,0.05,101000.0,100980.0,0.0166]
[1746719650749,0.21784304,100990.0,100980.0,0.0166]
[1746719650946,0.21784304,100990.0,100980.0,0.21465902]
[1746719650947,0.55784235,100990.0,100980.0,0.21465902]
[1746719651108,0.37960541,100990.0,100980.0,0.21465902]
[1746719651422,0.38950738,100990.0,100980.0,0.21465902]
[1746719651628,0.5776456,100990.0,100980.0,0.18367054]
[1746719651884,0.00990393,100970.0,100950.0,0.29394541]
[1746719652026,0.00990402,100960.0,100950.0,0.3194513]
[1746719652232,0.36970962,100970.0,100960.0,0.19809825]
[1746719652440,0.37961325,100970.0,100960.0,0.19809825]
[1746719652705,0.21792897,100950.0,100940.0,0.1981375]
[1746719652935,0.34,100950.0,100940.0,0.02580667]
[1746719653110,0.36971551,100950.0,100940.0,0.22394417]
[1746719653437,0.36971551,100950.0,100940.0,0.2140375]
[1746719653568,0.36971541,100950.0,100940.0,0.22394417]
[1746719653768,0.36971541,100950.0,100940.0,0.2140375]
[1746719653985,0.35985746,100950.0,100940.0,0.22394427]
[1746719654207,0.84433126,100950.0,100940.0,0.1981375]
[1746719654398,0.21797235,100930.0,100920.0,0.00085838]
[1746719654606,0.21797235,100930.0,100920.0,0.19903515]
[1746719654607,0.1303892,100930.0,100920.0,0.19903515]
[1746719654809,0.34,100940.0,100930.0,0.19815713]
[1746719655033,0.34,100940.0,100920.0,0.21885233]
[1746719655034,0.00990756,100930.0,100920.0,0.00085838]
[1746719655377,1.08254322,100930.0,100920.0,0.00085838]
[1746719655595,0.65863946,100930.0,100920.0,0.00085838]
[1746719655814,0.34,100930.0,100920.0,0.20894379]
[1746719656028,0.34,100930.0,100920.0,0.22534389]
[1746719656253,0.35981462,100930.0,100920.0,0.02716712]
[1746719656488,0.02976433,100950.0,100930.0,0.00990785]
[1746719656712,0.00990707,100930.0,100920.0,0.01725838]
[1746719656930,0.00990716,100930.0,100920.0,0.02716721]
[1746719657150,0.34,100940.0,100920.0,0.02576662]
[1746719657368,0.34,100940.0,100930.0,0.23357195]
[1746719657617,0.34,100940.0,100930.0,0.24347941]
[1746719657825,0.34,100940.0,100930.0,0.25977941]
[1746719658527,4.715e-05,100950.0,100940.0,0.26035693]
[1746719658852,4.715e-05,100950.0,100940.0,0.2306375]
[1746719659065,4.715e-05,100950.0,100940.0,0.41053195]
[1746719659266,0.05,101000.0,100970.0,0.0152]
[1746719659549,0.05014156,101000.0,100990.0,0.0152]
[1746719659701,0.15080848,101000.0,100980.0,0.0152]
[1746719660479,0.00247559,100990.0,100980.0,0.0152]
[1746719660686,0.34,100980.0,100970.0,0.4]
[1746719660888,0.44066692,100980.0,100970.0,0.4]
[1746719661301,0.44066692,100980.0,100950.0,0.032]
[1746719661495,0.00247615,100970.0,100950.0,0.032]
[1746719661915,0.00247615,100970.0,100950.0,0.432]
[1746719662121,0.44066692,100980.0,100950.0,0.432]
[1746719662425,0.00247624,100970.0,100950.0,0.432]
[1746719662827,0.44066692,100980.0,100950.0,0.432]
[1746719663296,0.44066692,100980.0,100960.0,0.0155]
[1746719663698,0.06468241,101000.0,100960.0,0.0156]
[1746719663917,0.34,100980.0,100970.0,0.0158]
[1746719664127,0.44066692,100980.0,100960.0,0.0158]
[1746719664348,0.6387322,100980.0,100970.0,0.19807863]
[1746719664555,0.6387322,100980.0,100960.0,0.21388109]
[1746719664760,0.6387322,100980.0,100970.0,0.19807863]
[1746719664970,0.6387322,100980.0,100960.0,0.21388109]
[1746719665188,0.34,100960.0,100950.0,0.5980879]
[1746719665392,0.34,100960.0,100950.0,0.6146879]
[1746719665617,0.34,100960.0,100950.0,0.6298879]
[1746719665824,0.34,100960.0,100950.0,0.75036552]
[1746719666026,0.26259416,101000.0,100980.0,0.1980399]
[1746719666238,0.67831262,100990.0,100980.0,0.1980399]
[1746719666466,0.01980472,100980.0,100970.0,0.1980399]
[1746719666675,0.4505682,100990.0,100980.0,0.19805902]
[1746719666887,0.47037125,100990.0,100980.0,0.19805902]
[1746719667092,0.0599001,101000.0,100990.0,0.1980394]
[1746719667301,0.05014156,101000.0,100990.0,0.25004304]
[1746719667628,0.06004166,101000.0,100990.0,0.23404304]
[1746719667814,0.06251709,101000.0,100990.0,0.23404324]
[1746719668083,0.06004166,101000.0,100990.0,0.24394501]
[1746719668293,0.05014156,101000.0,100990.0,0.2142394]
[1746719668496,0.05014156,101000.0,100980.0,0.19805902]
[1746719668497,0.01980256,100990.0,100980.0,0.19805902]
[1746719668700,0.36227818,100990.0,100980.0,0.19805902]
[1746719668910,0.36227818,100990.0,100980.0,0.23286462]
[1746719668911,0.34990118,100990.0,100980.0,0.23286462]
[1746719669119,0.35980256,100990.0,100980.0,0.21305902]
[1746719669322,0.34990118,100990.0,100980.0,0.23286462]
[1746719669529,0.34,100990.0,100980.0,0.23286462]
[1746719669738,0.34,100990.0,100980.0,0.24276727]
[1746719669944,0.34,100990.0,100980.0,0.26257208]
[1746719670908,0.34,100990.0,100980.0,0.26257159]
[1746719671086,0.34,100990.0,100980.0,0.25266933]
[1746719671294,0.34,100990.0,100980.0,0.26257159]
[1746719671473,0.34,100990.0,100980.0,0.27837159]
[1746719671916,0.44066692,100990.0,100980.0,0.19805902]
[1746719672324,0.01980246,100990.0,100980.0,0.22406187]
[1746719672497,0.02970403,100990.0,100980.0,0.22406197]
[1746719672751,0.02970403,100990.0,100980.0,0.21415902]
[1746719672934,0.02970403,100990.0,100980.0,0.22406197]
[1746719673340,0.01980246,100990.0,100980.0,0.21415902]
[1746719673541,0.02970403,100990.0,100980.0,0.21415902]
[1746719673749,0.01980246,100990.0,100980.0,0.22406197]
[1746719673927,0.01980246,100990.0,100980.0,0.21415902]
[1746719674280,0.06014156,101000.0,100990.0,0.2143394]
[1746719674492,0.06014156,101000.0,100990.0,0.24404412]
[1746719674666,0.06014156,101000.0,100990.0,0.23414284]
[1746719675074,0.06014156,101000.0,100990.0,0.24404452]
[1746719675339,0.41004176,101000.0,100990.0,0.24404461]
[1746719675641,0.62786284,101000.0,100990.0,0.2143394]
[1746719675819,0.43974373,101000.0,100990.0,0.2143394]
[1746719675965,0.41004176,101000.0,100990.0,0.2143394]
[1746719676171,0.41994225,101000.0,100990.0,0.22424127]
[1746719676381,0.40014156,101000.0,100990.0,0.25904412]
[1746719676799,0.40014156,101000.0,100990.0,0.25904432]
[1746719677011,0.41004166,101000.0,100990.0,0.25904451]
[1746719677222,0.41004166,101000.0,100990.0,0.25394599]
[1746719677421,0.40014156,101000.0,100990.0,0.25394589]
[1746719677654,0.41004166,101000.0,100990.0,0.24404451]
[1746719677863,0.41004176,101000.0,100990.0,0.23414294]
[1746719678064,0.40014156,101000.0,100990.0,0.24404432]
[1746719678269,0.41004166,101000.0,100990.0,0.24404442]
[1746719678757,0.41004176,101000.0,100990.0,0.24404442]
[1746719678991,0.41004176,101000.0,100990.0,0.24404451]
[1746719679180,0.40014156,101000.0,100990.0,0.25394599]
[1746719679422,0.40014156,101000.0,100990.0,0.24404451]
[1746719679423,0.41004176,101000.0,100990.0,0.24404451]
[1746719679627,0.41004176,101000.0,100990.0,0.25394589]
[1746719679628,0.40014156,101000.0,100990.0,0.25394589]
[1746719679834,0.41004176,101000.0,100990.0,0.25394599]
[1746719680044,0.40014156,101000.0,100990.0,0.25394599]
[1746719680257,0.06014156,101000.0,100980.0,0.23984408]
[1746719680464,0.06014156,101000.0,100990.0,0.25054304]
[1746719680681,0.06014156,101000.0,100990.0,0.26044461]
[1746719680892,0.08984265,101000.0,100990.0,0.25054324]
[1746719681096,0.07994206,101000.0,100990.0,0.25054324]
[1746719681305,0.08984275,101000.0,100990.0,0.24064137]
[1746719681522,0.08984275,101000.0,100990.0,0.2307394]
[1746719681739,0.09974364,101000.0,100990.0,0.2141394]
[1746719681976,0.07994196,101000.0,100990.0,0.23394274]
[1746719682181,0.09231779,101000.0,100990.0,0.2141394]
[1746719682387,0.11211927,101000.0,100990.0,0.2141394]
[1746719682539,0.11211917,101000.0,100990.0,0.2141394]
[1746719682745,0.11211917,101000.0,100990.0,0.2241394]
[1746719683001,0.11211996,101000.0,100990.0,0.2241394]
[1746719683176,0.11211986,101000.0,100990.0,0.2241394]
[1746719683381,0.10221897,101000.0,100990.0,0.23404137]
[1746719683587,0.11211986,101000.0,100990.0,0.2241394]
[1746719684012,0.07004176,101000.0,100990.0,0.25384432]
[1746719684236,0.07994206,101000.0,100990.0,0.23404127]
[1746719684413,0.09231821,101000.0,100990.0,0.2241394]
[1746719684844,0.07994206,101000.0,100990.0,0.24394324]
[1746719685050,0.07994206,101000.0,100990.0,0.23404137]
[1746719685293,0.44313397,101000.0,100990.0,0.01]
[1746719685508,0.39317061,101000.0,100990.0,0.01]
[1746719685756,0.35882828,101000.0,100990.0,0.2080394]
[1746719685979,0.37862956,101000.0,100990.0,0.2080394]
[1746719686424,0.37862956,101000.0,100990.0,0.01]
[1746719686667,0.37862956,101000.0,100990.0,0.2080394]
[1746719686903,0.39317041,101000.0,100990.0,0.01]
[1746719687159,1.20788211,101000.0,100990.0,0.01]
[1746719687838,0.82628909,101000.0,100990.0,0.01]
[1746719688284,0.83553889,101000.0,100990.0,0.01]
[1746719689194,1.22713191,101000.0,100990.0,0.01]
[1746719689422,0.83553889,101000.0,100990.0,0.01]
[1746719689678,0.74242021,101000.0,100990.0,0.01]
[1746719689903,0.74242021,101000.0,100990.0,0.2080394]
[1746719690134,0.72787936,101000.0,100990.0,0.01]
[1746719691473,0.73482213,101000.0,100990.0,0.01]
[1746719693174,0.74936298,101000.0,100990.0,0.01]
[1746719693402,0.8500299,101000.0,100990.0,0.01]
[1746719693610,0.74936298,101000.0,100990.0,0.01]
[1746719694034,0.02970746,100980.0,100970.0,0.06518803]
[1746719694250,0.03218278,100980.0,100970.0,0.08148803]
[1746719694489,0.04208543,100980.0,100970.0,0.09139196]
[1746719695162,0.04208612,100980.0,100970.0,0.08148803]
[1746719695606,0.01237796,100980.0,100970.0,0.10129569]
[1746719695811,0.23024278,100980.0,100970.0,0.08148803]
[1746719696064,0.00990226,100980.0,100970.0,0.09139196]
[1746719696285,0.04143317,100980.0,100970.0,0.08148803]
[1746719696507,0.04143317,100980.0,100970.0,0.09139196]
[1746719696508,0.03153042,100980.0,100970.0,0.09139196]
[1746719696730,0.03153051,100980.0,100970.0,0.08148803]
[1746719696957,0.23949238,100980.0,100970.0,0.08148803]
[1746719697181,0.23701648,100980.0,100970.0,0.06518803]
[1746719697652,0.56778943,100970.0,100960.0,0.20429019]
[1746719697869,0.35980697,100970.0,100960.0,0.2132965]
[1746719698262,0.35980628,100970.0,100960.0,0.2132965]
[1746719698495,0.36970952,100970.0,100960.0,0.23310583]
[1746719698723,0.37961296,100970.0,100960.0,0.23900131]
[1746719698950,0.38951659,100970.0,100960.0,0.2290965]
[1746719699175,0.34,100970.0,100960.0,0.25881005]
[1746719699415,0.5776456,100990.0,100980.0,0.0157]
[1746719699635,0.67831252,100990.0,100980.0,0.21374246]
[1746719699873,0.68462745,100990.0,100980.0,0.21374246]
[1746719700319,0.67472597,100990.0,100980.0,0.21374246]
[1746719700583,0.6648243,100990.0,100980.0,0.0157]
[1746719700784,0.0198057,100980.0,100970.0,0.2296437]
[1746719701039,0.45688303,100990.0,100980.0,0.21385902]
[1746719701271,0.67472577,100990.0,100980.0,0.21385902]
[1746719701464,0.68462764,100990.0,100980.0,0.21385902]
[1746719701713,0.67472607,100990.0,100980.0,0.21385902]
[1746719701949,0.66777631,100990.0,100980.0,0.21385902]
[1746719702401,0.66777631,100990.0,100980.0,0.0158]
[1746719702619,0.64860819,100990.0,100970.0,0.2292437]
[1746719702840,0.00990216,100980.0,100970.0,0.24905136]
[1746719703036,0.01980452,100980.0,100970.0,0.25895489]
[1746719703293,0.0420861,100980.0,100970.0,0.2292437]
[1746719703520,0.20798236,100970.0,100960.0,0.00619369]
[1746719703763,0.20798236,100970.0,100950.0,0.02229369]
[1746719703764,0.20800296,100960.0,100950.0,0.02229369]
[1746719703998,0.64866988,100960.0,100930.0,0.02159369]
[1746719704230,0.01981266,100940.0,100930.0,0.21975082]
[1746719704471,0.46047742,100950.0,100940.0,0.1981375]
[1746719704697,0.37962179,100950.0,100940.0,0.2299375]
[1746719704941,0.37962159,100950.0,100940.0,0.23984437]
[1746719705183,0.37962159,100950.0,100940.0,0.00014162]
[1746719705184,1.09895167,100950.0,100940.0,0.00014162]
[1746719705427,0.7480934,100950.0,100940.0,0.00014162]
[1746719706194,1.13968642,100950.0,100940.0,0.00014162]
[1746719706423,0.7580934,100950.0,100940.0,0.00014162]
[1746719707334,0.69933093,100950.0,100940.0,0.00014162]
[1746719707595,0.68933093,100950.0,100940.0,0.00014162]
[1746719708710,0.68238711,100950.0,100940.0,0.00014162]
[1746719708940,1.07398013,100950.0,100940.0,0.00014162]
[1746719709179,1.13008013,100950.0,100940.0,0.00014162]
[1746719709416,1.23074705,100950.0,100940.0,0.00014162]
[1746719709647,0.55803696,100900.0,100890.0,1.96773219]
[1746719709867,0.67324473,100900.0,100890.0,1.9522013]
[1746719710304,0.65870388,100900.0,100890.0,1.9522013]
[1746719710738,0.47039744,100900.0,100890.0,2.166337]
[1746719710957,0.47039744,100900.0,100890.0,2.181837]
[1746719711200,0.19820326,100930.0,100910.0,0.20810623]
[1746719711441,0.10314437,100930.0,100920.0,0.24380238]
[1746719711675,0.14029636,100930.0,100920.0,0.23007677]
[1746719712129,0.11057389,100930.0,100920.0,0.24989414]
[1746719712351,0.00990599,100940.0,100930.0,0.22336498]
[1746719712586,0.21797234,100930.0,100920.0,0.19817677]
[1746719712797,0.12048145,100930.0,100920.0,0.22987677]
[1746719713011,0.67845369,100930.0,100920.0,0.22987677]
[1746719713224,0.45057389,100930.0,100920.0,0.23978541]
[1746719713451,0.45057408,100930.0,100920.0,0.21347677]
[1746719713660,0.65863946,100930.0,100920.0,0.21394588]
[1746719714543,0.46048096,100930.0,100920.0,0.23004588]
[1746719714789,0.65863907,100930.0,100920.0,0.23004588]
[1746719715432,0.46048194,100930.0,100920.0,0.23004588]
[1746719715644,0.67318041,100930.0,100920.0,0.00046911]
[1746719715864,1.05477343,100930.0,100920.0,0.00046911]
[1746719716103,1.06477343,100930.0,100920.0,0.00046911]
[1746719717833,0.55803696,100900.0,100890.0,1.96683219]
[1746719718038,0.65870388,100900.0,100890.0,1.96687934]
[1746719718659,0.65870388,100900.0,100890.0,1.95177934]
[1746719718845,1.15550467,100900.0,100890.0,1.95177934]
[1746719719083,1.16550467,100900.0,100890.0,1.95149125]
[1746719719314,1.06483775,100900.0,100890.0,1.95149125]
[1746719719520,1.11483775,100900.0,100890.0,1.95149125]
[1746719720039,1.12173873,100900.0,100890.0,1.95149125]
[1746719720242,1.07173873,100900.0,100890.0,1.95149125]
[1746719720455,0.70170212,100900.0,100890.0,1.95149125]
[1746719720660,0.68014571,100900.0,100890.0,1.95149125]
[1746719720868,0.31870388,100900.0,100890.0,2.16592695]
[1746719721296,0.65870388,100900.0,100890.0,1.96769125]
[1746719721484,0.64879357,100900.0,100890.0,2.16592695]
[1746719721706,0.45057693,100900.0,100890.0,2.16592695]
[1746719721872,0.13039784,100900.0,100890.0,2.18192695]
[1746719722077,0.32861389,100900.0,100890.0,2.18192695]
[1746719722274,0.34991001,100900.0,100890.0,2.18192695]
[1746719722482,0.90761496,100910.0,100900.0,0.22951605]
[1746719722680,0.79026692,100910.0,100900.0,0.22951605]
[1746719722903,1.0181913,100910.0,100900.0,0.22951605]
[1746719723093,1.15008527,100910.0,100900.0,0.22951605]
[1746719723333,1.34828227,100910.0,100900.0,0.22951605]
[1746719723466,1.34828227,100910.0,100900.0,0.21951605]
[1746719723699,1.34828227,100910.0,100900.0,0.0213]
[1746719723918,1.33837295,100910.0,100900.0,0.21951605]
[1746719724134,1.32846333,100910.0,100900.0,0.21951605]
[1746719724335,0.21803715,100900.0,100890.0,2.14972695]
[1746719724609,0.70029709,100900.0,100890.0,1.95149125]
[1746719724765,1.05483794,100900.0,100890.0,1.95149125]
[1746719724978,1.13406547,100900.0,100890.0,0.70480098]
[1746719725176,1.18406547,100900.0,100890.0,0.70480098]
[1746719725562,1.19944437,100900.0,100860.0,0.19829029]
[1746719725775,0.20822983,100850.0,100840.0,0.21343251]
[1746719725994,0.21814505,100850.0,100840.0,0.0151]
[1746719726479,0.54820939,100860.0,100850.0,0.21481432]
[1746719726708,0.54820939,100860.0,100850.0,0.0319]
[1746719726709,0.65879094,100860.0,100850.0,0.0319]
[1746719726941,1.04038396,100860.0,100850.0,0.0154]
[1746719727167,0.65926225,100860.0,100850.0,0.0154]
[1746719727804,0.45105257,100860.0,100850.0,0.22941432]
[1746719728015,0.45105227,100860.0,100850.0,0.22941432]
[1746719728208,0.36029969,100860.0,100850.0,0.22941432]
[1746719728425,0.578424,100860.0,100850.0,0.22941432]
[1746719728569,0.55859523,100860.0,100850.0,0.0311]
[1746719728818,0.55859523,100860.0,100850.0,0.22941432]
[1746719729033,0.34047131,100860.0,100850.0,0.22941432]
[1746719729256,0.37021402,100860.0,100850.0,0.22941432]
[1746719729456,0.38012875,100860.0,100850.0,0.22941432]
[1746719729672,0.36029949,100860.0,100850.0,0.22941432]
[1746719729903,0.00047131,100860.0,100850.0,0.25916027]
[1746719731132,0.00047131,100860.0,100850.0,0.35982719]
[1746719731479,0.09904687,100910.0,100890.0,0.21804283]
[1746719731702,0.11305385,100910.0,100900.0,0.23011605]
[1746719731921,0.00990805,100920.0,100910.0,0.19819641]
[1746719732144,0.00990805,100920.0,100910.0,0.0319]
[1746719732145,0.31866087,100920.0,100910.0,0.0319]
[1746719732589,0.11057516,100920.0,100910.0,0.23009641]
[1746719732803,0.13039155,100920.0,100910.0,0.23009641]
[1746719733027,0.14030029,100920.0,100910.0,0.23009641]
[1746719733255,0.32113836,100920.0,100910.0,0.23009641]
[1746719733491,0.4604841,100920.0,100910.0,0.23009641]
[1746719733727,0.11057497,100920.0,100910.0,0.23009641]
[1746719733941,0.01981482,100930.0,100920.0,0.21417677]
[1746719734177,0.32854633,100930.0,100920.0,0.0314]
[1746719734423,0.65863907,100930.0,100920.0,0.016]
[1746719735105,0.75930599,100930.0,100920.0,0.016]
[1746719735335,0.56262626,100920.0,100910.0,0.00620118]
[1746719735541,0.54810603,100910.0,100900.0,0.00620118]
[1746719735720,0.20812665,100900.0,100890.0,0.0152]
[1746719735953,0.30879357,100900.0,100890.0,0.0152]
[1746719736171,0.30879357,100900.0,100890.0,0.2134357]
[1746719736361,0.31870407,100900.0,100890.0,0.2284357]
[1746719736788,0.54815916,100890.0,100880.0,0.19825535]
[1746719736989,0.34991139,100890.0,100880.0,0.22949708]
[1746719737195,0.35982248,100890.0,100880.0,0.23940984]
[1746719737398,0.34991109,100890.0,100880.0,0.22949708]
[1746719737610,0.34,100890.0,100880.0,0.19932211]
[1746719737813,0.19827132,100940.0,100910.0,0.04180942]
[1746719738034,0.12048036,100940.0,100930.0,0.19815713]
[1746719738240,0.32852473,100940.0,100930.0,0.22955713]
[1746719738446,0.31861806,100940.0,100930.0,0.0314]
[1746719738664,0.31861806,100940.0,100930.0,0.22955713]
[1746719738869,0.31861806,100940.0,100930.0,0.0314]
[1746719739072,0.65861806,100940.0,100930.0,0.0314]
[1746719739279,0.65875953,100940.0,100930.0,0.0158]
[1746719739693,0.20806488,100930.0,100920.0,0.2290395]
[1746719739918,0.2278799,100930.0,100920.0,0.2290395]
[1746719740125,0.02972277,100930.0,100920.0,0.2290395]
[1746719740334,0.00014147,100940.0,100930.0,0.24807234]
[1746719740531,0.00014147,100940.0,100930.0,0.2579795]
[1746719740975,0.00014147,100940.0,100930.0,0.26417749]
[1746719741601,0.001,100950.0,100940.0,0.25795693]
[1746719741847,0.001,100950.0,100940.0,0.35862385]
[1746719742043,0.001,100950.0,100940.0,0.66415492]
[1746719742482,0.001,100950.0,100940.0,0.23443549]
[1746719742694,0.001,100950.0,100940.0,0.26415492]
[1746719743275,0.001,100950.0,100940.0,0.25795693]
[1746719743480,0.001,100950.0,100940.0,0.35862385]
[1746719744672,0.001,100950.0,100940.0,0.36482184]
[1746719745039,0.001,100950.0,100940.0,0.77157025]
[1746719745681,0.45157232,100950.0,100940.0,0.00619799]
[1746719745889,0.46147742,100950.0,100940.0,0.23613549]
[1746719746096,0.66950099,100950.0,100940.0,0.2299375]
[1746719746303,0.64969049,100950.0,100940.0,0.0163]
[1746719746505,0.20804417,100940.0,100930.0,0.0163]
[1746719746706,0.6496902,100950.0,100940.0,0.1981375]
[1746719746952,0.3509053,100950.0,100940.0,0.64659258]
[1746719747126,0.37071581,100950.0,100940.0,0.63668591]
[1746719747430,0.35090501,100950.0,100940.0,0.63668591]
[1746719747599,0.35090501,100950.0,100940.0,0.2299375]
[1746719747806,0.39052709,100950.0,100940.0,0.2299375]
[1746719748055,0.68931189,100950.0,100940.0,0.0318]
[1746719748261,0.65959638,100950.0,100940.0,0.0163]
[1746719748434,0.55795055,100940.0,100930.0,0.22995713]
[1746719748636,0.34990618,100940.0,100930.0,0.65652095]
[1746719748863,0.34,100940.0,100930.0,0.64661339]
[1746719749084,0.36971865,100940.0,100930.0,0.63670554]
[1746719749296,0.34990599,100940.0,100930.0,0.64661329]
[1746719749434,0.34990599,100940.0,100930.0,0.24977244]
[1746719749635,0.31959707,100950.0,100940.0,0.23984417]
[1746719749636,0.001,100950.0,100940.0,0.23984417]
[1746719749838,0.03071619,100950.0,100940.0,0.2299375]
[1746719750253,0.22140567,100950.0,100940.0,0.0318]
[1746719750457,0.31959589,100950.0,100940.0,0.0163]
[1746719750865,0.31959589,100950.0,100940.0,0.2144375]
[1746719751127,0.1313839,100950.0,100940.0,0.2302375]
[1746719751310,0.23131134,100950.0,100940.0,0.2302375]
[1746719751474,0.22883457,100950.0,100940.0,0.2302375]
[1746719752696,0.31959609,100950.0,100940.0,0.2302375]
[1746719753451,0.20804427,100940.0,100930.0,0.21335498]
[1746719753662,0.21795085,100940.0,100930.0,0.22875713]
[1746719754297,0.01981227,100940.0,100930.0,0.22875713]
[1746719754510,0.0208105,100950.0,100940.0,0.2298375]
[1746719754715,0.0208105,100950.0,100940.0,0.23974427]
[1746719754916,0.03071609,100950.0,100940.0,0.2298375]
[1746719755544,0.001,100950.0,100940.0,0.2298375]
[1746719755834,0.001,100950.0,100940.0,0.25955713]
[1746719755835,0.01090501,100950.0,100940.0,0.25955713]
[1746719756034,0.35090501,100950.0,100940.0,0.63145873]
[1746719756242,0.341,100950.0,100940.0,0.65127139]
[1746719756456,0.341,100950.0,100940.0,0.24965075]
[1746719756457,0.3509051,100950.0,100940.0,0.24965075]
[1746719756694,0.3707158,100950.0,100940.0,0.2298375]
[1746719756999,0.341,100950.0,100940.0,0.24965055]
[1746719757244,0.3509051,100950.0,100940.0,0.25955723]
[1746719757423,0.341,100950.0,100940.0,0.26946361]